bitfinex-derivatives/quotes_ETHF0:USTF0_20251009
["timestamp","ask_amount","ask_price","bid_price","bid_amount"]
[1759995748249,0.86598,4419.3,4419.2,0.96039]
[1759995748455,0.86598,4419.3,4419.2,1.18639]
[1759995748656,0.86598,4419.3,4419.2,1.40269]
[1759995750255,0.86598,4419.3,4419.2,0.9955]
[1759995751359,1.64804315,4419.3,4419.2,0.9955]
[1759995751560,1.64804315,4419.3,4419.2,1.40269]
[1759995751764,1.64804315,4419.3,4419.2,1.17669]
[1759995752064,1.64804315,4419.3,4419.2,1.40269]
[1759995752657,1.93554315,4419.3,4419.2,1.40269]
[1759995753862,1.93554315,4419.3,4419.2,0.7695]
[1759995754066,1.93554315,4419.3,4419.2,0.9955]
[1759995754565,1.93554315,4419.3,4419.2,1.40269]
[1759995754968,1.64804315,4419.3,4419.2,1.40269]
[1759995756871,1.93554315,4419.3,4419.2,0.5532]
[1759995757172,1.1535,4419.1,4419.0,0.3337]
[1759995757368,1.1535,4419.1,4419.0,0.4947]
[1759995757674,4.02782512,4419.1,4419.0,0.5597]
[1759995758174,1.15351,4418.9,4418.8,0.33556167]
[1759995758367,1.93557315,4418.9,4418.8,0.78106167]
[1759995759974,4.82900964,4418.9,4418.8,0.33556167]
[1759995760175,4.82900964,4418.9,4418.8,0.18986167]
[1759995760975,4.82900964,4418.9,4418.8,0.51766167]
[1759995761778,4.82900964,4418.9,4418.8,0.32966167]
[1759995762082,4.82900964,4418.9,4418.8,0.55566167]
[1759995762874,4.54150964,4418.9,4418.8,0.78116167]
[1759995763079,4.82980964,4418.9,4418.8,0.78116167]
[1759995763380,4.82980964,4418.9,4418.8,0.22786167]
[1759995764082,4.82980964,4418.9,4418.8,0.54186167]
[1759995764876,5.61187279,4418.9,4418.8,0.00186167]
[1759995765077,5.61187279,4418.9,4418.8,0.22786167]
[1759995765275,0.83958,4418.2,4418.1,0.314]
[1759995765580,1.90994315,4418.2,4418.1,0.54]
[1759995765775,1.50266315,4418.2,4418.1,1.16849]
[1759995765976,1.50266315,4418.2,4418.1,1.37899]
[1759995765977,0.83958,4418.2,4418.1,1.37899]
[1759995766179,0.83958,4418.2,4418.1,1.38094363]
[1759995767284,0.63078,4418.2,4418.1,1.38094363]
[1759995767579,0.40728,4418.2,4418.1,1.38094363]
[1759995767877,0.97399708,4418.7,4418.1,1.38094363]
[1759995768083,0.83953,4418.7,4418.6,0.7457]
[1759995768279,0.83953,4418.7,4418.6,0.9717]
[1759995768475,4.00617728,4418.7,4418.6,0.7612]
[1759995768679,0.6307,4419.1,4419.0,0.1356]
[1759995768878,0.8395,4419.1,4419.0,0.8813]
[1759995769087,1.81349708,4419.1,4419.0,0.8813]
[1759995769679,2.10179708,4419.1,4419.0,0.6708]
[1759995769878,5.06314272,4419.1,4419.0,0.492]
[1759995770082,5.06314272,4419.1,4419.0,0.178]
[1759995773682,5.06314272,4419.1,4419.0,0.492]
[1759995775286,5.06314272,4419.1,4419.0,0.178]
[1759995775787,5.06314272,4419.1,4418.5,0.4496]
[1759995775788,1.12784,4418.6,4418.5,0.4496]
[1759995775989,2.10183708,4418.6,4418.5,1.08285]
[1759995776486,2.10183708,4418.6,4418.5,1.30405]
[1759995777084,5.03370157,4418.6,4418.5,0.6708]
[1759995777290,5.03370157,4418.6,4418.5,0.8968]
[1759995777479,5.03370157,4418.6,4418.5,1.30405]
[1759995777884,4.74540157,4418.6,4418.5,1.51455]
[1759995779086,4.33816157,4418.6,4418.5,1.51455]
[1759995779290,4.53660157,4418.6,4418.5,1.51455]
[1759995779789,4.53660157,4418.6,4418.5,1.1073]
[1759995780289,4.31310157,4418.6,4418.5,1.51455]
[1759995780589,3.33910449,4418.6,4418.5,1.51455]
[1759995781484,3.33910449,4418.6,4418.5,1.1073]
[1759995781684,3.33910449,4418.6,4418.5,1.51455]
[1759995781890,3.56260449,4418.6,4418.5,1.1073]
[1759995782485,3.77140449,4418.6,4418.5,1.1073]
[1759995782789,5.03370157,4418.6,4418.5,0.7612]
[1759995783690,5.03370157,4418.6,4418.5,0.8968]
[1759995785185,4.33816157,4418.6,4418.5,1.51455]
[1759995785390,4.74540157,4418.6,4418.5,1.51455]
[1759995785887,2.93186449,4418.6,4418.5,1.51455]
[1759995786081,1.99194708,4419.4,4419.2,0.5352]
[1759995786082,1.12778,4419.3,4419.2,0.5352]
[1759995786286,1.69212356,4419.3,4419.2,0.7612]
[1759995786487,4.56834702,4419.3,4419.2,0.7612]
[1759995786790,4.56834702,4419.3,4419.2,0.54]
[1759995789794,4.56834702,4419.3,4419.2,0.7612]
[1759995789995,4.28004702,4419.3,4419.2,0.9902]
[1759995790197,0.8279,4419.1,4419.0,0.3326]
[1759995790394,1.116,4419.1,4419.0,0.5586]
[1759995790588,4.05359277,4419.1,4419.0,0.5586]
[1759995790792,4.05359277,4419.1,4419.0,0.3326]
[1759995790996,0.40724,4418.6,4418.5,0.1356]
[1759995791186,2.09003708,4418.6,4418.5,0.99085]
[1759995791693,1.80193708,4418.6,4418.5,1.32345]
[1759995791992,1.80193708,4418.6,4418.5,1.55245]
[1759995792594,2.09003708,4418.6,4418.5,1.55245]
[1759995793598,2.09003708,4418.6,4418.5,1.1452]
[1759995794499,2.09003708,4418.6,4418.5,0.3326]
[1759995794796,2.09003708,4418.6,4418.5,0.5586]
[1759995795196,2.09003708,4418.6,4418.5,0.7806]
[1759995796598,1.80193708,4418.6,4418.5,1.1419]
[1759995797503,1.80193708,4418.6,4418.5,1.54915]
[1759995798000,0.82794,4418.6,4418.5,1.54915]
[1759995798594,0.2098,4418.6,4418.5,1.54915]
[1759995798799,0.617,4419.0,4418.9,0.7836]
[1759995799002,0.4072,4419.0,4418.9,0.7836]
[1759995799306,3.35493448,4419.0,4418.9,0.7836]
[1759995800303,3.56473448,4419.0,4418.9,0.7836]
[1759995803709,3.35493448,4419.0,4418.9,0.7836]
[1759995804510,3.35493448,4419.0,4418.9,1.19081]
[1759995805902,2.94773448,4419.0,4418.9,1.19081]
[1759995806207,3.35493448,4419.0,4418.9,1.19081]
[1759995806508,3.35493448,4419.0,4418.9,0.7836]
[1759995808109,3.35493448,4419.0,4418.9,1.19081]
[1759995809610,3.35493448,4419.0,4418.9,0.7836]
[1759995812716,3.35493448,4419.0,4418.9,1.19081]
[1759995813605,1.01791,4419.5,4419.0,0.4072]
[1759995813809,0.82786,4419.5,4419.4,0.7836]
[1759995814008,1.39275974,4419.5,4419.4,0.7836]
[1759995814205,4.34087166,4419.5,4419.4,0.7836]
[1759995815009,5.31486874,4419.5,4419.4,0.7836]
[1759995815711,5.60296874,4419.5,4419.4,0.7836]
[1759995816010,5.31486874,4419.5,4419.4,0.7836]
[1759995817313,5.60296874,4419.5,4419.4,0.3326]
[1759995817617,1.11599,4419.2,4419.1,0.5586]
[1759995817915,0.82789,4419.2,4419.1,1.0096]
[1759995818510,0.82789,4419.2,4419.1,1.4168]
[1759995818914,0.82789,4419.2,4419.1,1.0096]
[1759995819412,0.82789,4419.2,4419.1,1.4168]
[1759995819811,0.82789,4419.2,4419.1,1.0096]
[1759995820012,0.61699,4419.2,4419.1,1.0096]
[1759995820410,0.83939,4419.2,4419.1,0.3326]
[1759995820617,1.12749,4419.2,4419.1,0.5586]
[1759995820915,1.12749,4419.2,4419.1,0.7848]
[1759995821113,0.83939,4419.2,4419.1,0.9991]
[1759995824613,0.2224,4419.2,4419.1,1.4063]
[1759995824818,0.62695,4419.7,4419.6,0.7655]
[1759995825118,3.60006806,4419.7,4419.6,0.9915]
[1759995825616,0.40713,4419.8,4419.7,1.17263]
[1759995825815,1.69849708,4420.4,4420.3,0.5417]
[1759995826012,1.81747708,4420.4,4420.3,0.9915]
[1759995826222,4.77715972,4420.4,4420.3,0.9915]
[1759995826416,5.06525972,4420.4,4420.3,0.9915]
[1759995827218,4.77715972,4420.4,4420.3,0.9915]
[1759995827413,3.80316264,4420.4,4420.3,0.9915]
[1759995827917,3.58656264,4420.4,4420.3,0.9915]
[1759995828310,3.36676264,4420.4,4420.3,0.9915]
[1759995828715,1.1316,4420.1,4420.0,0.3325]
[1759995828921,1.91237431,4420.1,4420.0,0.226]
[1759995829223,1.13163,4419.8,4419.7,0.3325]
[1759995829419,1.13163,4419.8,4419.7,0.5585]
[1759995829619,4.07660444,4419.8,4419.7,0.5585]
[1759995829819,4.85737875,4419.8,4419.7,0.5585]
[1759995831023,4.07660444,4419.8,4419.7,0.7677]
[1759995831228,4.85737875,4419.8,4419.7,0.7677]
[1759995831821,4.85737875,4419.8,4419.7,0.226]
[1759995832126,4.85737875,4419.8,4419.7,0.5585]
[1759995832426,4.56927875,4419.8,4419.7,0.9915]
[1759995833625,4.35267875,4419.8,4419.7,0.9915]
[1759995834525,3.35210444,4419.8,4419.7,0.9915]
[1759995835015,0.40713,4419.8,4419.7,0.9915]
[1759995836533,1.62430431,4419.8,4419.7,0.9915]
[1759995836734,1.91240431,4419.8,4419.7,0.9915]
[1759995836933,1.91240431,4419.8,4419.7,0.5417]
[1759995837135,1.91240431,4419.8,4419.7,0.7677]
[1759995838041,1.62430431,4419.8,4419.7,0.9915]
[1759995838340,1.40765431,4420.4,4420.3,0.7655]
[1759995838532,1.40765431,4420.4,4420.3,0.9915]
[1759995838739,4.41202107,4420.4,4420.3,0.9915]
[1759995839042,4.91672107,4420.4,4420.3,0.9915]
[1759995839539,4.91672107,4420.4,4420.3,0.7655]
[1759995839844,1.1316,4420.1,4420.0,0.3349]
[1759995840042,1.91237431,4420.1,4420.0,0.5259]
[1759995840242,1.91237431,4420.1,4420.0,0.8584]
[1759995841042,1.91237431,4420.1,4420.0,0.8934]
[1759995841441,4.85117464,4420.1,4420.0,0.5585]
[1759995842541,4.56307464,4420.1,4420.0,1.1172]
[1759995843036,4.85117464,4420.1,4420.0,1.1172]
[1759995843238,3.34590033,4420.1,4420.0,1.1172]
[1759995843442,4.34647464,4420.1,4420.0,1.1172]
[1759995844840,4.56307464,4420.1,4420.0,1.1172]
[1759995845033,4.85117464,4420.1,4420.0,0.226]
[1759995845643,4.85117464,4420.1,4420.0,0.5585]
[1759995846337,4.85117464,4420.1,4420.0,0.8934]
[1759995846542,4.56307464,4420.1,4420.0,1.1172]
[1759995850252,3.78230033,4420.1,4420.0,1.1172]
[1759995851555,3.78230033,4420.1,4420.0,1.52431]
[1759995851949,0.4071,4420.1,4420.0,1.1172]
[1759995852351,0.6294,4420.1,4420.0,1.1172]
[1759995852756,0.4071,4420.1,4420.0,1.1172]
[1759995853051,1.18786431,4420.2,4420.1,1.156]
[1759995853258,0.40709,4420.2,4420.1,1.156]
[1759995853454,0.62939,4420.2,4420.1,0.7489]
[1759995854256,0.40709,4420.2,4420.1,0.7489]
[1759995855859,0.40709,4420.2,4420.1,1.156]
[1759995857862,0.40709,4420.2,4420.1,0.7489]
[1759995858158,0.62939,4420.2,4420.1,0.7489]
[1759995858661,0.40709,4420.2,4420.1,0.7489]
[1759995859256,1.13049,4420.2,4420.1,0.3149]
[1759995859448,1.13049,4420.2,4420.1,0.5409]
[1759995860660,1.17685,4419.6,4419.5,0.2214]
[1759995860861,1.17685,4419.6,4419.5,0.4474]
[1759995861964,0.7697,4419.6,4419.1,1.0]
[1759995862257,0.7697,4419.6,4418.1,0.00195363]
[1759995862258,0.72608,4418.2,4418.1,0.00195363]
[1759995862449,1.60645431,4418.2,4418.1,0.22795363]
[1759995862652,1.60645431,4418.2,4418.1,0.54285363]
[1759995863249,1.60645431,4418.2,4418.1,0.31685363]
[1759995863449,4.61642047,4418.2,4418.1,0.31685363]
[1759995863660,4.61642047,4418.2,4418.1,0.09995363]
[1759995865163,4.61642047,4418.2,4418.1,0.41485363]
[1759995867267,4.61642047,4418.2,4418.1,0.84885363]
[1759995867268,3.73604616,4418.2,4418.1,0.84885363]
[1759995867564,4.51682047,4418.2,4418.1,0.84885363]
[1759995868961,3.57664616,4418.2,4418.1,0.84885363]
[1759995869164,3.41724616,4418.2,4418.1,0.84885363]
[1759995869658,4.51682047,4418.2,4418.1,0.84885363]
[1759995873766,4.51682047,4418.2,4418.1,0.75085363]
[1759995873967,3.83564616,4418.2,4418.1,0.00195363]
[1759995874267,4.51682047,4418.2,4418.1,0.97685363]
[1759995879567,3.41724616,4418.2,4418.1,0.97685363]
[1759995885171,3.73714616,4418.2,4418.1,0.22795363]
[1759995885475,4.51792047,4418.2,4418.1,0.76345363]
[1759995888669,0.40728,4418.2,4418.1,0.98665363]
[1759995890771,1.01807,4418.8,4418.1,0.85354363]
[1759995890971,1.01804,4418.9,4418.1,0.85354363]
[1759995890972,0.56711,4418.9,4418.8,0.7587]
[1759995891176,3.61654825,4418.9,4418.8,0.9847]
[1759995891377,0.72701,4418.9,4418.8,0.9847]
[1759995891680,3.71644825,4418.9,4418.8,0.5404]
[1759995891870,3.61654825,4418.9,4418.8,0.7615]
[1759995893370,0.40721,4418.9,4418.8,0.9847]
[1759995894668,0.56711,4418.9,4418.8,0.9847]
[1759995895377,0.72701,4418.9,4418.8,0.9847]
[1759995895577,0.56711,4418.9,4418.8,0.9847]
[1759995900677,0.82691,4418.9,4418.8,0.5404]
[1759995901084,0.82691,4418.9,4418.8,0.7615]
[1759995901377,0.82691,4418.9,4418.8,0.3144]
[1759995901580,0.72701,4418.9,4418.8,0.9847]
[1759995902680,0.82691,4418.9,4418.8,0.3144]
[1759995902877,0.82694,4418.6,4418.5,0.125]
[1759995903075,1.80066203,4418.6,4418.5,0.351]
[1759995903476,1.80066203,4418.6,4418.5,0.6654]
[1759995904777,0.72708,4418.2,4418.1,0.53745363]
[1759995904981,1.80070203,4418.2,4418.1,0.22795363]
[1759995905180,3.82220484,4418.2,4418.1,0.22895363]
[1759995905378,4.79592687,4418.2,4418.1,0.54335363]
[1759995905684,4.69602687,4418.2,4418.1,0.76445363]
[1759995905884,3.56240484,4418.2,4418.1,0.98765363]
[1759995906087,0.40728,4418.2,4418.1,0.98765363]
[1759995906289,0.40723,4418.7,4418.5,0.97655]
[1759995906587,0.56713,4418.7,4418.6,0.7625]
[1759995906778,0.72703,4418.7,4418.6,0.9857]
[1759995907990,0.56713,4418.7,4418.6,0.9857]
[1759995908178,0.40723,4418.7,4418.6,0.9857]
[1759995909683,0.97372203,4419.2,4418.6,1.07853]
[1759995909882,0.40715,4419.6,4419.5,0.1272]
[1759995910081,0.40715,4419.6,4419.5,1.1146]
[1759995912886,0.72635,4419.6,4419.5,1.1146]
[1759995913087,0.7264,4419.1,4419.0,0.4401]
[1759995913388,4.7222956,4419.1,4419.0,0.6671]
[1759995914385,3.48917357,4419.1,4419.0,1.1146]
[1759995914583,3.32957357,4419.1,4419.0,1.1146]
[1759995914786,0.1596,4419.6,4419.5,0.5747]
[1759995914986,0.1596,4419.6,4419.5,1.1146]
[1759995915186,3.10407652,4419.6,4419.5,1.1146]
[1759995915396,3.36347652,4419.6,4419.5,0.6671]
[1759995915892,3.26367652,4419.6,4419.5,0.8962]
[1759995916584,2.94447652,4419.6,4419.5,1.1146]
[1759995916787,0.97372203,4420.3,4420.0,0.1272]
[1759995916987,0.4071,4420.1,4420.0,0.5747]
[1759995917190,0.4071,4420.1,4420.0,0.8017]
[1759995917386,0.4071,4420.1,4420.0,1.1146]
[1759995918495,0.5667,4420.1,4420.0,1.1146]
[1759995918791,0.4071,4420.1,4420.0,1.1146]
[1759995920288,0.4071,4420.2,4420.0,0.8017]
[1759995920489,0.4071,4420.2,4420.1,0.7604]
[1759995921587,1.01765,4420.7,4420.3,0.7604]
[1759995921588,0.40708,4420.4,4420.3,0.7604]
[1759995922184,0.00233717,4420.8,4420.5,0.5747]
[1759995922384,0.00233717,4420.8,4420.7,0.7604]
[1759995922586,0.32153717,4420.8,4420.7,0.7604]
[1759995922790,3.30555661,4420.8,4420.7,0.197]
[1759995923092,3.30555661,4420.8,4420.7,0.5099]
[1759995923595,3.20575661,4420.8,4420.7,0.9574]
[1759995923798,3.04615661,4420.8,4420.7,0.9574]
[1759995923986,2.88655661,4420.8,4420.7,0.9574]
[1759995924293,0.00233717,4420.8,4420.7,0.9574]
[1759995924491,0.00233717,4420.8,4420.7,0.7604]
[1759995924694,0.32153717,4420.8,4420.7,0.9124]
[1759995925085,0.72857717,4420.8,4420.7,0.9124]
[1759995927895,0.56897717,4420.8,4420.7,0.9124]
[1759995928392,0.72857717,4420.8,4420.7,0.9124]
[1759995928788,0.72857717,4420.8,4420.7,0.9874]
[1759995929390,0.72857717,4420.8,4420.7,0.3129]
[1759995929596,3.70527556,4420.8,4420.7,0.3909]
[1759995929792,3.70527556,4420.8,4420.7,0.62]
[1759995930004,3.70527556,4420.8,4420.7,0.8384]
[1759995930502,3.80507556,4420.8,4420.7,0.078]
[1759995930696,0.82606,4420.6,4420.5,0.3129]
[1759995930891,1.79978203,4420.6,4420.5,0.5399]
[1759995931098,4.79738684,4420.6,4420.5,0.5399]
[1759995933499,4.79738684,4420.6,4420.5,0.6671]
[1759995935897,3.56426481,4420.6,4420.5,1.1146]
[1759995936802,3.40466481,4420.6,4420.5,1.1146]
[1759995937797,3.72386481,4420.6,4420.5,0.8962]
[1759995938202,3.72386481,4420.6,4420.5,1.1146]
[1759995939100,0.40706,4420.6,4420.5,1.1146]
[1759995939303,0.00233717,4420.8,4420.7,1.18185]
[1759995939803,0.40937717,4420.8,4420.7,1.18185]
[1759995943093,0.40937717,4420.8,4420.7,0.7748]
[1759995943296,0.72857717,4420.8,4420.7,0.7748]
[1759995943694,0.72857717,4420.8,4420.7,1.0008]
[1759995944901,0.00233717,4420.8,4420.7,1.0008]
[1759995946406,0.16153717,4420.8,4420.7,1.0008]
[1759995948005,0.00233717,4420.8,4420.7,1.0008]
[1759995951513,0.16153717,4420.8,4420.7,1.0008]
[1759995952011,1.34921878,4420.8,4420.7,1.0008]
[1759995952612,0.56857717,4420.8,4420.7,1.0008]
[1759995952906,1.19001878,4420.8,4420.7,1.0008]
[1759995953708,1.50841878,4420.8,4420.7,0.792]
[1759995953909,1.50841878,4420.8,4420.7,0.566]
[1759995954105,1.50841878,4420.8,4420.7,0.7854]
[1759995954310,1.50841878,4420.8,4420.7,1.0114]
[1759995955508,1.34921878,4420.8,4420.7,1.0114]
[1759995955809,1.19001878,4420.8,4420.7,1.41845]
[1759995956014,0.40937717,4420.8,4420.7,1.41845]
[1759995957614,0.00233717,4420.8,4420.7,1.41845]
[1759995957816,0.40937717,4420.8,4420.7,1.41845]
[1759995959024,0.00233717,4420.8,4420.7,1.41845]
[1759995959512,1.01735,4421.9,4420.7,1.0114]
[1759995959715,0.56614,4421.9,4421.8,0.7608]
[1759995959912,0.56614,4421.9,4421.8,0.9868]
[1759995960111,0.40694,4421.9,4421.8,0.9868]
[1759995960315,0.56614,4421.9,4421.8,0.9868]
[1759995960516,0.72698735,4421.9,4421.8,0.77032333]
[1759995960911,1.50762896,4421.9,4421.8,0.77032333]
[1759995961217,0.40858735,4421.9,4421.8,0.98972333]
[1759995961616,0.00164735,4421.9,4421.8,0.98972333]
[1759995963125,0.40858735,4421.9,4421.8,0.98972333]
[1759995964222,0.40858735,4421.9,4421.8,1.39667333]
[1759995964921,0.00164735,4421.9,4421.8,1.39667333]
[1759995965318,0.78228896,4421.9,4421.8,1.39667333]
[1759995965522,1.18922896,4421.9,4421.8,0.98972333]
[1759995966126,1.18922896,4421.9,4421.8,1.39667333]
[1759995966127,0.78228896,4421.9,4421.8,1.39667333]
[1759995968022,0.00164735,4421.9,4421.8,1.39667333]
[1759995970524,0.022,4422.9,4422.7,0.85046]
[1759995970525,0.40686,4422.8,4422.7,0.85046]
[1759995970722,0.022,4422.9,4422.7,0.85046]
[1759995970723,0.022,4422.9,4422.8,0.95545]
[1759995971030,0.80264161,4422.9,4422.8,0.7737]
[1759995971326,0.8046303,4422.9,4422.8,0.7737]
[1759995971724,0.02398869,4422.9,4422.8,0.7737]
[1759995971930,0.8046303,4422.9,4422.8,0.7737]
[1759995973828,0.02398869,4422.9,4422.8,0.7737]
[1759995974124,0.8046303,4422.9,4422.8,0.7737]
[1759995974732,1.2114803,4422.9,4422.8,1.18055]
[1759995975126,0.8046303,4422.9,4422.8,1.18055]
[1759995977131,1.2114803,4422.9,4422.8,1.18055]
[1759995977831,1.2114803,4422.9,4422.8,0.7737]
[1759995978027,1.2114803,4422.9,4422.8,1.18055]
[1759995978435,0.8046303,4422.9,4422.8,1.18055]
[1759995978938,1.2114803,4422.9,4422.8,1.18055]
[1759995981242,0.02398869,4422.9,4422.8,1.18055]
[1759995981442,0.8046303,4422.9,4422.8,1.18055]
[1759995981646,0.02398869,4422.9,4422.8,1.18055]
[1759995984642,1.01686,4424.1,4423.8,0.4436]
[1759995984845,0.56544,4424.1,4424.0,0.9105]
[1759995985041,3.7254374,4424.1,4424.0,0.9105]
[1759995985646,3.8267699,4424.1,4424.0,0.9105]
[1759995986141,3.8267699,4424.1,4424.0,0.4669]
[1759995986142,5.38805312,4424.1,4424.0,0.4669]
[1759995986539,0.40678,4423.6,4423.5,0.1368]
[1759995986746,1.18742161,4423.6,4423.5,0.7854]
[1759995987149,1.18742161,4423.6,4423.5,1.1155]
[1759995987350,1.34612161,4423.6,4423.5,1.1155]
[1759995987650,1.18742161,4423.6,4423.5,1.1155]
[1759995988250,1.34612161,4423.6,4423.5,1.1155]
[1759995988547,4.53437882,4423.6,4423.5,0.6929]
[1759995990850,4.53437882,4423.6,4423.5,0.4669]
[1759995991051,4.53437882,4423.6,4423.5,0.6929]
[1759995991754,4.53437882,4423.6,4423.5,0.4669]
[1759995991949,4.53437882,4423.6,4423.5,0.5561]
[1759995992449,4.53437882,4423.6,4423.5,0.226]
[1759995992450,9.53437882,4423.6,4423.5,0.226]
[1759995992654,9.53437882,4423.6,4423.0,0.1368]
[1759995992655,0.82342,4423.2,4423.1,0.3301]
[1759995992948,4.60744865,4423.2,4423.1,0.3301]
[1759995993152,0.1587,4422.6,4422.5,0.6854]
[1759995993347,1.50491161,4422.6,4422.5,0.7874]
[1759995993552,1.50491161,4422.6,4422.5,1.0125]
[1759995994350,5.36081734,4422.6,4422.5,0.6929]
[1759995995849,0.56557,4422.6,4422.5,1.1365]
[1759995996046,0.40687,4422.6,4422.5,1.1365]
[1759995996356,1.18751161,4422.6,4422.5,1.1365]
[1759995997151,1.18751161,4422.6,4422.5,1.54338]
[1759995997654,1.18751161,4422.6,4422.5,1.1365]
[1759995999949,1.18751161,4422.6,4422.5,1.54338]
[1759996001154,0.0991,4424.0,4422.5,0.8064]
[1759996001362,0.40678,4423.6,4423.5,0.8754]
[1759996001653,1.18742161,4423.6,4423.5,1.1014]
[1759996002356,0.40678,4423.6,4423.5,1.50819]
[1759996002659,1.18742161,4423.6,4423.5,1.1014]
[1759996003256,0.78064161,4423.6,4423.5,1.50819]
[1759996003457,1.18742161,4423.6,4423.5,1.50819]
[1759996004161,1.18742161,4423.6,4423.5,1.1014]
[1759996004361,1.18742161,4423.6,4423.5,1.50819]
[1759996008062,0.78064161,4423.6,4423.5,1.50819]
[1759996009762,0.40676,4423.9,4423.5,1.50819]
[1759996009763,0.4088725,4424.1,4424.0,0.8811]
[1759996010063,1.18951411,4424.1,4424.0,1.1071]
[1759996010762,1.18951411,4424.1,4424.0,1.51384]
[1759996011063,1.34781411,4424.1,4424.0,1.51384]
[1759996011259,0.94107411,4424.1,4424.0,1.51384]
[1759996011462,1.34781411,4424.1,4424.0,1.51384]
[1759996011965,1.53867232,4424.1,4424.0,1.51384]
[1759996012264,0.97363232,4424.1,4424.0,1.51384]
[1759996013263,1.38037232,4424.1,4424.0,1.51384]
[1759996014767,0.0021325,4424.1,4424.0,1.51384]
[1759996014955,1.38037232,4424.1,4424.0,1.1071]
[1759996015868,1.38037232,4424.1,4424.0,1.51384]
[1759996016062,0.97363232,4424.1,4424.0,1.51384]
[1759996017170,0.0021325,4424.1,4424.0,1.51384]
[1759996028072,0.7254725,4424.1,4424.0,1.1071]
[1759996028374,0.0021325,4424.1,4424.0,1.51384]
[1759996031676,0.40666,4425.0,4424.9,1.18416]
[1759996031874,0.40666,4425.0,4424.9,1.41016]
[1759996032071,0.40664,4425.1,4425.0,0.9034]
[1759996032272,3.92093457,4425.2,4425.1,0.3385]
[1759996032472,3.92093457,4425.2,4425.1,0.7775]
[1759996032673,4.33045632,4425.2,4425.1,0.77960948]
[1759996032872,3.92381632,4425.2,4425.1,1.18624948]
[1759996033177,4.33044632,4425.2,4425.1,1.18624948]
[1759996033569,4.33044632,4425.2,4425.1,0.77960948]
[1759996033778,0.00288175,4425.2,4425.1,1.18624948]
[1759996034273,1.37806982,4426.0,4425.8,0.74508]
[1759996034477,1.37806982,4426.0,4425.9,0.665]
[1759996034675,1.54016982,4426.0,4425.9,1.0035]
[1759996034875,4.42062006,4426.0,4425.9,1.0035]
[1759996035181,4.42221573,4426.0,4425.9,1.0035]
[1759996035570,1.54176549,4426.0,4425.9,1.41007]
[1759996036183,1.54176549,4426.0,4425.9,1.0035]
[1759996036480,1.70386549,4426.0,4425.9,1.0035]
[1759996036976,0.73236567,4426.0,4425.9,1.0035]
[1759996037171,1.70386549,4426.0,4425.9,1.0035]
[1759996037785,0.4066,4425.6,4425.5,0.1259]
[1759996037972,1.70229982,4425.6,4425.5,0.576]
[1759996038374,1.70229982,4425.6,4425.5,0.9145]
[1759996038876,4.72360623,4425.6,4425.5,0.4644]
[1759996039078,4.72360623,4425.6,4425.5,0.6904]
[1759996039586,4.72360623,4425.6,4425.5,0.9145]
[1759996039884,4.62230623,4425.6,4425.5,0.9145]
[1759996040084,4.62230623,4425.6,4425.5,1.1294]
[1759996040287,3.89150623,4425.6,4425.5,1.1294]
[1759996040584,3.89150623,4425.6,4425.5,1.53601]
[1759996040783,0.40815567,4426.0,4425.9,0.439]
[1759996041082,3.31321079,4426.0,4425.9,1.18407]
[1759996041987,3.31321079,4426.0,4425.9,0.7775]
[1759996042587,3.47531079,4426.0,4425.9,0.7775]
[1759996043883,3.47531079,4426.0,4425.9,1.18407]
[1759996043884,0.00159567,4426.0,4425.9,1.18407]
[1759996044787,0.40815567,4426.0,4425.9,1.18407]
[1759996045992,0.57025567,4426.0,4425.9,1.18407]
[1759996046194,1.54175549,4426.0,4425.9,1.18407]
[1759996051093,1.37965549,4426.0,4425.9,1.18407]
[1759996052391,0.97309549,4426.0,4425.9,1.18407]
[1759996052990,1.37965549,4426.0,4425.9,1.18407]
[1759996053192,0.97309549,4426.0,4425.9,1.18407]
[1759996053599,1.37965549,4426.0,4425.9,1.18407]
[1759996056201,0.97309549,4426.0,4425.9,1.18407]
[1759996057202,0.00159567,4426.0,4425.9,1.18407]
[1759996058599,0.40815567,4426.0,4425.9,1.18407]
[1759996058801,0.73055567,4426.0,4425.9,1.0035]
[1759996059911,0.73055567,4426.0,4425.9,1.41007]
[1759996061715,0.32399567,4426.0,4425.9,1.41007]
[1759996062011,0.16279567,4426.0,4425.9,1.41007]
[1759996062213,0.00159567,4426.0,4425.9,1.41007]
[1759996063112,0.16279567,4426.0,4425.9,1.41007]
[1759996063907,0.16279567,4426.0,4425.9,1.18407]
[1759996064216,0.16279567,4426.0,4425.9,1.41007]
[1759996064510,0.00159567,4426.0,4425.9,1.41007]
[1759996068809,0.16269567,4426.0,4425.9,1.0035]
[1759996069016,0.00159567,4426.0,4425.9,1.41007]
[1759996069508,0.00159567,4426.0,4425.9,1.18407]
[1759996069709,0.00159567,4426.0,4425.9,1.41007]
[1759996071217,0.00159567,4426.0,4425.9,1.18407]
[1759996071515,0.00159567,4426.0,4425.9,1.41007]
[1759996072619,0.00159567,4426.0,4425.9,1.18407]
[1759996072911,0.00159567,4426.0,4425.9,1.41007]
[1759996073112,1.53905982,4427.1,4427.0,0.1335]
[1759996073415,1.53905982,4427.1,4427.0,1.1373]
[1759996073416,5.01277658,4427.1,4427.0,1.1373]
[1759996073616,5.17387658,4427.1,4427.0,1.1373]
[1759996073919,4.98100776,4427.1,4427.0,1.1373]
[1759996074213,4.98327495,4427.1,4427.0,1.1373]
[1759996074719,4.42106096,4427.1,4427.0,1.1373]
[1759996075719,4.52176096,4427.1,4427.0,1.1373]
[1759996075923,4.42106096,4427.1,4427.0,1.1373]
[1759996078814,4.52176096,4427.1,4427.0,1.1373]
[1759996079021,4.52176096,4427.1,4427.0,0.6922]
[1759996079315,4.52176096,4427.1,4427.0,0.4662]
[1759996079516,4.52176096,4427.1,4427.0,0.6922]
[1759996079923,4.52176096,4427.1,4427.0,0.5587]
[1759996080424,4.52176096,4427.1,4427.0,0.4662]
[1759996080626,4.52176096,4427.1,4427.0,0.6922]
[1759996080822,4.52176096,4427.1,4427.0,0.4662]
[1759996081118,4.42106096,4427.1,4427.0,0.9177]